bitfinex/quotes_ETHUSD_20260209
["timestamp","ask_amount","ask_price","bid_price","bid_amount"]
[1770610665744,0.002,2092.2,2092.1,0.003]
[1770610666595,0.002,2092.2,2092.1,1.19797155]
[1770610666844,0.002,2092.2,2092.1,0.003]
[1770610667497,0.002,2092.2,2092.0,2.18890145]
[1770610667698,0.002,2092.2,2092.1,0.003]
[1770610668352,0.002,2092.8,2092.2,0.99291699]
[1770610668643,0.002,2092.8,2092.4,0.99291699]
[1770610672018,0.002,2092.8,2092.5,2.18766012]
[1770610672617,0.002,2092.8,2092.5,2.19066012]
[1770610672817,0.002,2092.8,2092.6,0.99291699]
[1770610673247,0.002,2093.0,2092.7,0.99591699]
[1770610673444,0.002,2093.2,2092.7,0.99291699]
[1770610674149,0.002,2093.2,2092.8,0.99591699]
[1770610674334,0.002,2093.4,2092.8,0.99591699]
[1770610674335,0.002,2093.4,2093.0,0.99291699]
[1770610674723,0.002,2093.4,2092.8,0.99591699]
[1770610675429,0.002,2093.4,2092.8,0.99291699]
[1770610676952,0.3720041,2093.4,2092.9,0.003]
[1770610678947,1.56627525,2093.4,2092.9,0.003]
[1770610679855,1.56627525,2093.4,2092.5,3.34]
[1770610679856,0.3700041,2093.2,2092.5,4.53471892]
[1770610680727,0.42011147,2093.2,2092.6,1.19467634]
[1770610681059,0.3700041,2093.0,2092.5,4.53470535]
[1770610681522,1.56438759,2093.2,2092.5,4.53470535]
[1770610681721,0.3700041,2093.0,2092.6,0.003]
[1770610681926,0.3700041,2092.8,2092.2,1.19491001]
[1770610682754,8.23675674,2092.7,2092.3,0.003]
[1770610683053,1.56473314,2092.6,2092.2,0.003]
[1770610683358,9.43142988,2092.7,2092.1,0.003]
[1770610683527,9.80143398,2092.7,2092.1,0.003]
[1770610683952,1.19432392,2093.3,2092.4,0.99291699]
[1770610685259,0.3700041,2093.3,2092.5,2.18766012]
[1770610685433,1.19622948,2093.4,2092.6,0.99291699]
[1770610686139,0.002,2092.8,2092.6,0.99291699]
[1770610686545,0.002,2093.4,2092.6,0.99291699]
[1770610686736,0.002,2093.4,2092.8,0.99291699]
[1770610687263,0.002,2093.4,2092.9,2.18743177]
[1770610687643,0.002,2093.4,2093.0,0.99291699]
[1770610688143,0.002,2093.4,2093.0,1.00341079]
[1770610688757,0.002,2093.4,2093.1,0.003]
[1770610689353,0.002,2093.4,2093.1,0.0134938]
[1770610691656,0.002,2093.4,2093.2,1.19434358]
[1770610691874,0.002,2093.4,2093.1,2.20076641]
[1770610692659,0.002,2093.4,2093.2,0.99291699]
[1770610693169,0.002,2093.4,2093.3,0.003]
[1770610693334,0.002,2093.4,2093.2,0.0134938]
[1770610693750,0.002,2093.4,2093.3,1.19428653]
[1770610694259,0.002,2093.4,2093.3,1.20478033]
[1770610695746,0.002,2093.6,2093.4,0.98822348]
[1770610695951,0.002,2093.6,2093.4,0.99122348]
[1770610696351,0.002,2093.6,2093.4,1.00171728]
[1770610697362,0.002,2093.6,2093.5,0.003]
[1770610697549,0.002,2093.6,2093.5,0.92925568]
[1770610698062,0.002,2093.6,2093.5,2.12342811]
[1770610698263,0.002,2093.6,2093.5,2.13392191]
[1770610698862,0.002,2093.9,2093.6,0.93225568]
[1770610699396,0.002,2093.9,2093.6,0.94274948]
[1770610700278,0.002,2093.9,2093.7,2.12331404]
[1770610701150,0.002,2093.9,2093.8,0.93225568]
[1770610701350,0.002,2094.2,2093.9,0.92925568]
[1770610702187,0.002,2094.2,2093.9,2.12318584]
[1770610702358,0.002,2094.4,2094.0,0.93225568]
[1770610703375,0.002,2094.4,2094.0,0.003]
[1770610705378,0.002,2094.4,2094.0,0.92925568]
[1770610705567,0.002,2094.4,2094.1,0.003]
[1770610706765,0.002,2094.4,2094.1,0.93225568]
[1770610707485,0.002,2094.8,2094.2,0.92925568]
[1770610707644,0.002,2095.1,2094.2,0.92925568]
[1770610707846,1.19527595,2095.1,2094.4,0.92925568]
[1770610708069,1.61538742,2095.1,2094.2,0.93225568]
[1770610708961,8.58945494,2095.0,2094.2,2.12598935]
[1770610709747,8.21945084,2095.0,2094.3,0.92925568]
[1770610711077,0.002,2094.8,2094.4,0.92925568]
[1770610712087,0.002,2094.8,2094.2,2.12300541]
[1770610712383,0.002,2094.8,2094.4,0.003]
[1770610714064,0.002,2094.8,2094.4,0.93225568]
[1770610714463,0.002,2094.8,2094.5,0.92925568]
[1770610714693,0.002,2095.0,2094.5,0.92925568]
[1770610714901,0.002,2095.0,2094.4,8.21945084]
[1770610714902,0.002,2095.0,2094.7,0.92925568]
[1770610715884,0.002,2095.0,2094.8,1.19343135]
[1770610716259,0.002,2095.0,2094.8,2.12268703]
[1770610717194,0.002,2095.3,2094.9,0.92925568]
[1770610717410,0.3700041,2096.0,2095.1,0.92925568]
[1770610717706,1.19272867,2096.1,2095.2,0.92925568]
[1770610717864,1.19269118,2096.1,2095.3,2.12240224]
[1770610718059,1.19269118,2096.1,2095.4,0.92925568]
[1770610718406,4.77054378,2096.2,2095.4,0.92925568]
[1770610718407,1.19267052,2096.2,2095.4,0.92925568]
[1770610718708,1.19254779,2096.4,2095.5,0.93025568]
[1770610719012,1.19248902,2096.5,2095.7,0.92925568]
[1770610719317,1.19245105,2096.6,2095.7,0.92925568]
[1770610719463,1.5621834,2097.0,2095.9,0.92925568]
[1770610719971,1.1921793,2097.0,2096.1,0.92925568]
[1770610720160,1.24326896,2097.1,2096.3,0.92925568]
[1770610720360,1.61327306,2097.1,2096.2,3.337]
[1770610720564,1.61327306,2097.1,2096.3,0.001]
[1770610721370,0.3700041,2097.0,2096.3,0.001]
[1770610721603,0.05010737,2096.8,2096.0,0.92925568]
[1770610721814,0.3700041,2096.4,2096.1,0.001]
[1770610722100,1.19257739,2096.3,2095.5,1.19301158]
[1770610722266,1.19257739,2096.3,2095.6,0.92925568]
[1770610722462,1.19257739,2096.3,2095.6,0.93025568]
[1770610722684,1.19234988,2096.7,2095.6,0.93025568]
[1770610723062,0.05010737,2096.5,2095.6,0.93025568]
[1770610724410,1.19252051,2096.4,2095.7,1.19291883]
[1770610724786,1.19249394,2096.5,2095.8,0.93025568]
[1770610725896,1.19244476,2096.6,2095.8,0.93025568]
[1770610726074,4.76922773,2096.8,2095.8,0.93025568]
[1770610726280,0.001,2096.9,2095.8,0.93025568]
[1770610726599,1.19327813,2096.9,2096.0,0.92894946]
[1770610727095,1.19327813,2096.9,2096.1,0.92994946]
[1770610727390,1.19327813,2096.9,2096.1,0.92894946]
[1770610727595,1.19327813,2096.9,2096.2,0.92994946]
[1770610727786,1.19327813,2096.9,2096.2,0.92894946]
[1770610727983,0.3700041,2096.8,2096.3,0.001]
[1770610728173,0.05010737,2096.6,2095.8,0.92894946]
[1770610728498,0.05010737,2096.6,2095.9,0.001]
[1770610728499,0.42011147,2096.6,2095.9,0.001]
[1770610728798,0.42011147,2096.6,2095.5,0.001]
[1770610728799,0.05010737,2096.3,2095.5,0.001]
[1770610729381,0.42011147,2096.3,2095.5,0.001]
[1770610729579,0.3700041,2096.2,2095.5,0.001]
[1770610729965,0.05010737,2096.0,2095.5,0.001]
[1770610730167,0.42011147,2095.7,2095.0,0.0011]
[1770610730599,1.19297575,2095.6,2095.0,0.0011]
[1770610730973,1.192805,2095.9,2095.0,0.93004946]
[1770610731173,4.77093547,2096.1,2095.1,0.92894946]
[1770610732001,1.19269118,2096.1,2095.1,0.92894946]
[1770610732495,1.19269118,2096.1,2095.1,0.90736777]
[1770610733809,1.19269118,2096.1,2095.3,0.92894946]
[1770610734799,1.57257046,2096.2,2095.3,0.92894946]
[1770610735404,1.57257046,2096.2,2095.3,0.93004946]
[1770610735604,0.001,2095.9,2095.3,0.93004946]
[1770610735803,0.001,2095.9,2095.4,1.19308962]
[1770610736008,0.001,2095.9,2095.4,2.12203908]
[1770610737512,0.001,2095.9,2095.3,0.0011]
[1770610737814,0.001,2095.9,2095.3,0.93004946]
[1770610742279,0.001,2095.9,2095.3,0.0011]
[1770610742504,0.001,2095.9,2095.3,0.93004946]
[1770610743083,0.32978718,2096.2,2095.4,0.92894946]
[1770610743783,0.32978718,2096.2,2095.5,3.335]
[1770610743983,0.32978718,2096.2,2095.6,0.92894946]
[1770610744598,0.32978718,2096.2,2095.7,1.19291883]
[1770610744922,1.52245147,2096.2,2095.5,4.26394946]
[1770610746210,1.52245147,2096.2,2095.5,5.456979]
[1770610746528,1.52245147,2096.2,2095.6,2.12192322]
[1770610746736,1.52245147,2096.2,2095.6,0.92894946]
[1770610746891,0.32978718,2096.2,2095.7,0.92894946]
[1770610747326,0.001,2096.0,2095.7,0.92894946]
[1770610750124,0.001,2096.0,2095.5,5.45693049]
[1770610750535,0.001,2096.0,2095.5,3.335]
[1770610751216,0.001,2096.0,2095.5,4.26394946]
[1770610751432,0.001,2096.0,2095.5,5.45698213]
[1770610751740,0.001,2096.0,2095.6,2.12191967]
[1770610752432,0.001,2096.0,2095.6,0.92894946]
[1770610753395,0.001,2096.0,2095.5,5.45697119]
[1770610755700,0.001,2096.0,2095.5,4.28346429]
[1770610756204,0.001,2096.0,2095.5,3.335]
[1770610759335,0.001,2096.0,2095.7,0.0011]
[1770610764611,0.001,2096.0,2095.5,0.0011]
[1770610765755,0.001,2096.0,2095.6,0.92612798]
[1770610767356,1.5848788,2096.8,2095.9,0.92612798]
[1770610768629,0.39258579,2096.7,2095.9,0.92612798]
[1770610770048,1.19240675,2096.6,2095.9,0.92612798]
[1770610770651,1.63509991,2096.6,2095.9,0.92612798]
[1770610771259,1.24251412,2096.6,2095.9,0.92612798]
[1770610771457,1.24251412,2096.6,2095.9,0.92722798]
[1770610771662,0.001,2096.5,2096.0,0.92612798]
[1770610772259,0.001,2096.5,2096.2,0.92612798]
[1770610772576,1.51836692,2096.9,2096.2,0.92612798]
[1770610772740,0.32610025,2096.9,2096.2,0.92612798]
[1770610773267,0.2372021,2096.9,2096.3,0.92612798]
[1770610774567,0.2372021,2096.9,2096.5,0.92612798]
[1770610775153,0.19354081,2096.9,2096.5,0.92612798]
[1770610776577,0.19354081,2096.9,2096.7,0.92612798]
[1770610779284,1.38578127,2096.9,2096.1,0.92612798]
[1770610779521,1.43588864,2096.9,2096.1,0.92612798]
[1770610779651,1.43588864,2096.9,2096.1,1.1926875]
[1770610779970,1.43588864,2096.9,2096.2,0.92612798]
[1770610780344,0.19354081,2096.9,2096.3,2.11866643]
[1770610780545,1.38578932,2096.9,2096.4,0.92612798]
[1770610781262,0.19354081,2096.9,2096.5,0.92612798]
[1770610783340,0.19354081,2096.9,2096.7,0.92612798]
[1770610784145,0.00098914,2097.1,2096.8,0.92612798]
[1770610786178,0.00098914,2097.1,2096.9,1.19223615]
[1770610786359,1.19161105,2098.0,2097.0,0.97403286]
[1770610787305,0.31996589,2098.4,2097.0,0.97403286]
[1770610787593,1.51135204,2098.4,2097.2,0.97403286]
[1770610787752,1.51135204,2098.4,2097.4,0.97403286]
[1770610788195,0.31996589,2098.4,2097.7,0.97403286]
[1770610788483,1.51136529,2098.4,2097.4,3.333]
[1770610788691,1.56147266,2098.4,2097.5,0.97403286]
[1770610790568,1.95405845,2098.4,2097.5,0.97403286]
[1770610790786,0.05010737,2098.1,2097.4,3.333]
[1770610791162,1.3,2098.2,2097.5,0.97403286]
[1770610791758,1.51136529,2098.4,2097.5,0.97403286]
[1770610792171,1.51136529,2098.4,2097.6,0.97403286]
[1770610792371,0.31996589,2098.4,2097.6,0.97403286]
[1770610792607,0.31996589,2098.4,2097.8,0.97403286]
[1770610792977,1.51138108,2098.4,2097.8,0.97403286]
[1770610793874,1.51135041,2098.4,2097.8,0.97403286]
[1770610794076,1.51135959,2098.4,2097.8,0.97403286]
[1770610796401,1.51135959,2098.4,2097.5,0.97403286]
[1770610797303,0.001,2098.2,2097.5,0.97403286]
[1770610798575,0.001,2098.2,2097.4,3.333]
[1770610799327,1.3,2098.0,2097.4,3.333]
[1770610799922,1.19166785,2097.9,2097.4,3.333]
[1770610800438,1.19166785,2097.9,2097.3,0.0011]
[1770610800596,0.44269316,2097.8,2097.0,0.0011]
[1770610800906,0.05010737,2097.8,2097.0,0.0011]
[1770610801299,2.49164429,2098.0,2097.4,0.97403286]
[1770610801506,1.3,2098.0,2097.5,0.97403286]
[1770610801683,1.3,2098.0,2097.5,0.58315143]
[1770610801884,1.19250207,2098.2,2097.7,0.97403286]
[1770610801885,0.001,2098.2,2097.7,0.97403286]
[1770610802615,0.001,2098.2,2097.5,1.19189027]
[1770610802938,0.001,2098.2,2097.5,2.16592591]
[1770610803677,0.001,2098.2,2097.6,0.97403286]
[1770610803888,0.001,2098.2,2097.8,0.97403286]
[1770610804287,0.001,2098.2,2097.6,2.16582636]
[1770610804692,0.001,2098.2,2097.7,0.97403286]
[1770610807222,0.001,2098.2,2097.7,2.16579484]
[1770610808510,0.001,2098.2,2097.8,0.97403286]
[1770610809482,0.001,2098.2,2097.3,2.16710474]
[1770610810095,0.001,2098.2,2097.3,0.97513286]
[1770610810313,1.3,2098.0,2097.3,0.97513286]
[1770610811034,1.3,2098.0,2097.3,2.16713946]
[1770610811193,1.3,2098.0,2097.4,0.97403286]
[1770610811518,2.4916482,2098.0,2097.4,0.97403286]
[1770610811721,2.4916482,2098.0,2097.4,2.16597235]
[1770610811915,2.4916482,2098.0,2097.4,0.97403286]
[1770610812329,2.49161947,2098.0,2097.4,2.16598386]
[1770610812497,2.49162505,2098.0,2097.4,0.97403286]
[1770610812896,1.19162505,2098.0,2097.4,0.97403286]
[1770610813329,1.19162505,2098.0,2097.4,2.1659792]
[1770610813507,0.001,2098.2,2097.4,2.16598401]
[1770610813823,0.001,2098.2,2097.5,0.97403286]
[1770610816038,0.001,2098.2,2097.6,0.93109628]
[1770610817945,0.001,2098.2,2097.3,2.16160417]
[1770610818381,0.001,2098.2,2097.4,0.96853558]
[1770610820141,0.001,2098.2,2097.3,1.19306859]
[1770610820142,0.83357459,2098.1,2097.3,0.0011]
[1770610820351,2.49161105,2098.0,2097.3,0.0011]
[1770610820663,3.27507827,2098.0,2097.3,0.0011]
[1770610821009,3.27507827,2098.0,2097.6,0.0011]
[1770610821213,3.27607827,2098.0,2097.3,0.0011]
[1770610821511,0.78346722,2097.9,2097.3,0.0011]
[1770610821707,2.49261105,2098.0,2097.3,0.0011]
[1770610823027,3.27607827,2098.0,2097.3,0.0011]
[1770610823214,0.78346722,2097.9,2097.3,0.0011]
[1770610823732,0.05010737,2097.8,2097.3,0.0011]
[1770610824112,2.49261105,2098.0,2097.3,0.0011]
[1770610824350,2.49261105,2098.0,2097.3,0.96963558]
[1770610824532,2.49261105,2098.0,2097.5,0.96853558]
[1770610826846,2.49261105,2098.0,2097.3,0.0011]
[1770610827036,0.05010737,2097.8,2097.3,0.0011]
[1770610829127,1.19178147,2097.7,2097.3,0.0011]
[1770610831845,0.05010737,2097.5,2097.0,0.0011]
[1770610832152,0.05010737,2097.5,2096.6,5.156147]
[1770610833265,0.83357459,2097.5,2096.6,5.156147]
[1770610834558,1.19195194,2097.4,2096.8,0.0011]
[1770610835750,1.97541916,2097.4,2096.8,0.0011]
[1770610836561,1.19212245,2097.1,2096.6,4.18761142]
[1770610836858,1.19212245,2097.1,2096.6,0.0011]
[1770610837765,1.19189511,2097.5,2096.7,0.96853558]
[1770610838353,4.76796273,2097.8,2096.7,0.96853558]
[1770610838552,4.76796273,2097.8,2096.9,0.96853558]
[1770610838553,0.001,2097.8,2096.9,0.96853558]
[1770610839264,0.001,2097.8,2097.1,0.96853558]
[1770610840640,0.001,2097.8,2097.3,0.96853558]
[1770610842174,1.3,2097.6,2097.3,0.96853558]
[1770610842675,0.001,2097.8,2097.4,1.19195194]
[1770610842840,0.001,2097.8,2097.5,0.96853558]
[1770610846375,0.001,2097.8,2097.7,0.99232799]
[1770610847237,1.19120027,2098.8,2097.8,0.99232799]
[1770610847738,1.24130764,2098.8,2097.8,0.99232799]
[1770610847944,1.19120027,2098.8,2097.8,0.99232799]
[1770610848143,1.19108165,2099.0,2097.8,0.99232799]
[1770610848457,1.19108165,2099.0,2098.0,0.99232799]
[1770610848966,5.08333207,2099.3,2098.0,0.99232799]
[1770610848967,1.19092987,2099.2,2098.0,0.99232799]
[1770610849761,1.51074697,2099.3,2098.0,0.99232799]
[1770610849958,2.34432156,2099.3,2098.0,0.99232799]
[1770610850152,1.51074697,2099.3,2098.0,0.99232799]
[1770610850351,0.83357459,2099.1,2098.0,0.99232799]
[1770610850548,0.83357459,2099.1,2098.1,0.99232799]
[1770610850549,1.19104335,2099.0,2098.1,0.99232799]
[1770610851562,1.97451057,2099.0,2098.0,1.19160173]
[1770610851761,1.19104335,2099.0,2098.1,0.99232799]
[1770610852746,1.19104335,2099.0,2098.2,0.99232799]
[1770610853569,1.19097165,2099.2,2098.2,0.99232799]
[1770610853756,1.51072817,2099.3,2098.2,0.99232799]
[1770610854371,0.31983101,2099.3,2098.2,0.99232799]
[1770610854745,0.31983101,2099.3,2098.4,0.99232799]
[1770610854945,0.31983101,2099.3,2098.6,0.99232799]
[1770610855455,1.19058117,2099.9,2098.6,0.99232799]
[1770610856774,4.7614627,2100.2,2098.7,1.1912136]
[1770610856775,5.54492992,2100.2,2098.7,1.1912136]
[1770610856953,5.54492992,2100.2,2098.8,0.99232799]
[1770610857473,0.05010737,2099.7,2098.8,0.99232799]
[1770610858749,0.78346722,2099.9,2098.8,0.99232799]
[1770610858970,1.19058957,2099.8,2098.8,0.99232799]
[1770610859466,1.19058957,2099.8,2098.8,1.19115317]
[1770610859684,0.001,2099.7,2098.9,0.99232799]
[1770610860559,0.001,2099.7,2098.7,1.19120871]
[1770610860759,0.001,2099.7,2098.7,2.1835367]
[1770610860971,0.001,2099.7,2098.8,2.18347685]
[1770610861277,0.001,2099.7,2098.9,0.99232799]
[1770610863865,0.001,2099.7,2099.1,0.99232799]
[1770610868585,0.001,2099.7,2098.6,0.99232799]
[1770610869087,0.78446722,2099.7,2098.6,0.99232799]
[1770610870388,1.97417021,2099.6,2098.7,1.1912136]
[1770610870563,1.97417021,2099.6,2098.7,2.18354159]
[1770610871683,0.78346722,2099.5,2098.5,4.32132799]
[1770610871886,0.78446722,2099.5,2098.5,4.32132799]
[1770610872568,1.97428364,2099.4,2098.5,4.32132799]
[1770610872766,1.97428364,2099.4,2098.5,5.51265118]
[1770610873085,1.97428364,2099.4,2098.5,3.329]
[1770610873086,1.3,2099.2,2098.5,3.329]
[1770610873505,1.97428364,2099.4,2098.5,3.329]
[1770610875490,0.78346722,2099.3,2098.5,3.329]
[1770610876275,0.78346722,2099.3,2098.5,4.24586611]
[1770610876472,1.19081642,2099.4,2098.6,0.91686611]
[1770610876684,0.001,2099.5,2098.6,0.91686611]
[1770610876685,1.19180256,2099.5,2098.6,0.91686611]
[1770610877389,0.001,2099.5,2098.8,0.90136132]
[1770610879492,4.7614446,2100.3,2099.0,0.90136132]
[1770610880067,4.76109878,2100.4,2099.0,0.90136132]
[1770610881361,0.78446722,2100.3,2099.0,2.09236504]
[1770610881566,0.78446722,2100.1,2099.0,2.09236504]
[1770610882695,0.78446722,2100.1,2099.1,0.90136132]
[1770610883475,1.19047619,2100.0,2099.1,2.09234306]
[1770610883782,1.97494341,2100.0,2098.9,0.90136132]
[1770610884499,0.78446722,2099.9,2098.9,0.90136132]
[1770610884700,0.78446722,2099.9,2099.2,0.0011]
[1770610884865,0.83557459,2099.9,2099.2,0.0011]
[1770610885593,1.19058957,2099.8,2099.2,0.0011]
[1770610886025,1.19058957,2099.8,2099.2,0.90246132]
[1770610886240,1.19157541,2099.9,2099.2,0.90246132]
[1770610887252,0.001,2099.9,2099.2,0.90246132]
[1770610887392,0.001,2099.9,2099.3,2.09223446]
[1770610888829,0.001,2099.9,2099.2,0.0011]
[1770610890236,0.78546722,2099.9,2099.2,0.0011]
[1770610890731,0.83457459,2099.8,2099.2,0.0011]
[1770610890936,0.83457459,2099.8,2099.0,0.0011]
[1770610891926,1.19064628,2099.7,2099.0,0.0011]
[1770610896458,1.9751135,2099.7,2099.0,0.0011]
[1770610897055,1.9751135,2099.7,2099.2,0.0011]
[1770610897276,1.9751135,2099.7,2099.0,0.0011]
[1770610897554,1.19064628,2099.7,2099.0,0.0011]
[1770610899953,1.19064628,2099.7,2099.0,0.90246132]
[1770610900449,4.76358513,2099.9,2099.1,0.90136132]
[1770610900651,1.19153288,2099.9,2099.1,0.90136132]
[1770610904338,0.001,2099.9,2099.1,0.90136132]
[1770610904748,0.001,2099.9,2099.2,0.90136132]
[1770610905868,0.001,2099.9,2099.0,0.9799638]
[1770610906043,0.78546722,2099.9,2099.0,0.9799638]
[1770610906433,1.24069694,2099.8,2099.0,0.9799638]
[1770610908263,1.19058957,2099.8,2099.1,0.9788638]
[1770610908445,0.001,2099.9,2099.1,0.9788638]
[1770610908958,0.001,2099.9,2099.2,0.9799638]
[1770610909853,0.001,2099.9,2099.2,0.0011]
[1770610910054,0.83457459,2099.8,2099.0,0.9799638]
[1770610910255,0.83457459,2099.8,2098.6,0.9788638]
[1770610910256,0.83457459,2099.5,2098.6,0.9788638]
[1770610910453,1.19081642,2099.4,2098.6,0.9788638]
[1770610911168,4.51974244,2099.6,2098.7,0.9788638]
[1770610911464,1.3,2099.2,2098.7,0.9788638]
[1770610912463,1.3,2099.2,2098.9,0.9788638]
[1770610913337,1.19068282,2099.7,2098.9,0.9788638]
[1770610914969,0.001,2099.9,2099.1,0.9788638]
[1770610916971,0.83457459,2099.8,2098.6,2.17011137]
[1770610917166,0.83457459,2099.8,2098.7,0.9788638]
[1770610919068,1.9751135,2099.7,2098.7,0.9788638]
[1770610920164,1.9751135,2099.7,2098.5,1.19128168]
[1770610920165,0.78446722,2099.6,2098.6,0.9788638]
[1770610920375,1.19064628,2099.7,2098.7,0.9788638]
[1770610921073,1.9751135,2099.7,2098.9,0.0011]
[1770610921276,0.001,2099.5,2098.9,0.0011]
[1770610921573,1.301,2099.5,2098.9,0.0011]
[1770610923170,1.19081642,2099.4,2098.9,0.0011]
[1770610923351,1.19081642,2099.4,2098.9,0.9799638]
[1770610924272,2.49180189,2099.5,2098.9,0.9799638]
[1770610925476,3.27626911,2099.5,2098.9,0.0011]
[1770610925645,2.49180189,2099.5,2098.9,0.0011]
[1770610926273,2.49180189,2099.5,2098.9,0.9799638]
[1770610929349,3.27626911,2099.5,2098.9,0.0011]
[1770610929683,3.32637648,2099.5,2098.9,0.0011]
[1770610929980,2.49180189,2099.5,2098.9,0.0011]
[1770610930477,2.49180189,2099.5,2098.9,0.9799638]
[1770610931875,2.49180189,2099.5,2098.9,0.0011]
[1770610933482,3.27626911,2099.5,2098.6,0.0011]
[1770610933784,3.27626911,2099.5,2099.1,0.0011]
[1770610933987,0.001,2099.3,2099.1,0.0011]
[1770610934152,0.78546722,2099.3,2098.6,0.0011]
[1770610934481,0.83457459,2099.1,2098.6,0.0011]
[1770610934653,4.16357459,2099.1,2098.6,0.0011]
[1770610935087,4.16357459,2099.1,2098.1,0.9799638]
[1770610935388,0.05010737,2098.8,2098.1,0.0011]
[1770610936596,0.83457459,2098.8,2098.1,0.0011]
[1770610937456,1.1912136,2098.7,2098.1,0.0011]
[1770610939187,0.83457459,2098.5,2097.8,0.0011]
[1770610939687,1.97585113,2098.4,2097.8,0.0011]
[1770610939890,0.05010737,2098.2,2097.8,0.0011]
[1770610940064,0.05010737,2098.2,2097.0,1.1921444]
[1770610940271,0.96477174,2098.0,2097.1,0.9104398]
[1770610940485,0.05010737,2097.9,2097.1,0.9104398]
[1770610940790,3.33,2098.1,2097.2,2.10248562]
[1770610940958,3.33,2098.1,2097.3,2.1024372]
[1770610941158,3.33,2098.1,2097.4,0.9104398]
[1770610941588,1.19161105,2098.0,2097.4,0.9104398]
[1770610941784,1.19161105,2098.0,2097.1,0.9104398]
[1770610942090,2.15638279,2098.0,2097.1,2.10255785]
[1770610942592,2.15638279,2098.0,2097.1,2.10255298]
[1770610942762,1.19161105,2098.0,2097.3,0.9104398]
[1770610943465,1.19161105,2098.0,2097.0,0.9104398]
[1770610943466,2.15638279,2098.0,2097.0,0.9104398]
[1770610943781,0.96477174,2097.9,2097.0,0.9104398]
[1770610944166,0.96477174,2097.9,2097.0,2.1026125]
[1770610944371,0.96477174,2097.9,2097.1,0.9104398]
[1770610945379,1.19161105,2098.0,2097.1,0.9104398]
[1770610945579,1.19161105,2098.0,2097.3,0.0011]
[1770610945757,0.001,2097.8,2097.3,0.0011]
[1770610947893,1.19272466,2097.8,2097.3,0.0011]
[1770610949977,0.001,2097.8,2097.3,0.0011]
[1770610951366,0.001,2097.8,2097.0,0.0011]
[1770610951367,1.01487911,2097.7,2097.0,0.0011]
[1770610951569,1.01487911,2097.7,2096.8,0.0011]
[1770610951882,1.01487911,2097.4,2096.6,0.0011]
[1770610952068,2.15678051,2097.3,2096.6,0.0011]
[1770610952977,0.96477174,2097.2,2096.6,0.0011]
[1770610953166,1.01487911,2097.1,2096.2,0.0011]
[1770610953370,0.05010737,2097.0,2096.2,0.9115398]
[1770610953592,0.96477174,2096.6,2095.9,0.0011]
[1770610953983,1.19246362,2096.5,2095.9,0.0011]
[1770610954183,1.2945793,2097.1,2095.9,0.9115398]
[1770610954484,8.1007227,2097.0,2095.9,0.9115398]
[1770610955085,9.06549444,2097.0,2095.9,0.9115398]
[1770610955723,0.05010737,2096.8,2095.9,0.9115398]
[1770610957332,1.19234988,2096.7,2096.0,1.19274809]
[1770610957514,1.19234988,2096.7,2096.0,2.10318789]
[1770610957720,1.19234988,2096.7,2096.1,0.0011]
[1770610958009,1.19232798,2096.8,2096.1,0.9115398]
[1770610958389,1.19223844,2096.9,2096.1,0.9115398]
[1770610958593,4.52422414,2097.0,2096.1,0.9115398]
[1770610958796,5.53910325,2097.0,2096.1,0.9115398]
[1770610960390,4.52422414,2097.0,2096.2,0.9104398]
[1770610962930,4.52422414,2097.0,2096.2,2.10306988]
[1770610963331,4.52422414,2097.0,2096.3,0.9104398]
[1770610964928,4.52422414,2097.0,2096.3,2.10300761]
[1770610965122,4.52422414,2097.0,2096.3,0.9104398]
[1770610966027,4.52422414,2097.0,2096.3,2.10301484]
[1770610966231,0.15250737,2097.4,2096.3,2.10301484]
[1770610966232,5.70871117,2097.7,2096.4,0.90432499]
[1770610966826,5.70871117,2097.7,2096.6,0.90432499]
[1770610966995,0.99168806,2097.5,2096.6,0.90432499]
[1770610968124,5.70871117,2097.7,2096.6,0.90432499]
[1770610968934,5.70871117,2097.7,2096.7,2.09667487]
[1770610969428,0.001,2096.8,2096.7,2.09667487]
[1770610969830,0.001,2096.8,2096.5,2.09674338]
[1770610970028,0.001,2096.8,2096.6,2.09672536]
[1770610970331,0.001,2096.8,2096.7,0.90432499]
[1770610971616,0.001,2096.8,2096.5,1.19242504]
[1770610971824,0.001,2096.8,2096.6,1.19240328]
[1770610972020,0.001,2096.8,2096.6,2.09672827]
[1770610973333,0.001,2096.8,2096.7,2.09667487]
[1770610973536,1.19189511,2097.5,2096.8,0.90432499]
[1770610973713,0.94258069,2097.4,2096.6,0.90432499]
[1770610973916,0.94258069,2097.4,2096.6,2.09672207]
[1770610974439,0.94258069,2097.4,2096.6,0.90432499]
[1770610975238,0.94258069,2097.4,2096.6,2.09672525]
[1770610975413,0.001,2097.3,2096.6,2.09672525]
[1770610975832,0.001,2097.2,2096.6,2.09672525]
[1770610976235,1.19200877,2097.3,2096.6,0.90432499]
[1770610976236,0.001,2097.1,2096.6,0.90432499]
[1770610976734,0.001,2097.1,2096.6,2.09672387]
[1770610977440,0.001,2097.1,2096.6,0.90432499]
[1770610979918,0.94258069,2097.1,2096.2,5.67596131]
[1770610980629,2.13375999,2097.0,2096.2,0.90542499]
[1770610981170,2.13375999,2097.0,2096.2,0.0011]
[1770610981171,0.94258069,2096.9,2096.2,0.0011]
[1770610981467,0.001,2096.9,2096.2,0.90542499]
[1770610981631,0.001,2096.9,2096.4,0.0011]
[1770610983273,0.001,2096.8,2096.4,0.0011]
[1770610983564,1.3,2096.7,2096.4,0.0011]
[1770610983751,1.301,2096.7,2096.4,0.0011]
[1770610983949,0.001,2096.6,2096.4,0.0011]
[1770610984332,0.001,2096.6,2096.4,0.90542499]
[1770610985059,0.001,2096.9,2096.5,0.90432499]
[1770610985364,0.001,2096.9,2096.7,0.90432499]
[1770610987270,0.001,2096.9,2096.7,2.09666818]
[1770610987836,0.001,2096.9,2096.8,0.90432499]
[1770610989059,0.001,2096.9,2096.6,2.09671224]
[1770610990759,1.302,2096.9,2096.6,2.09671224]
[1770610991445,1.302,2096.9,2096.5,1.19242794]
[1770610991768,0.94158069,2096.8,2096.2,0.0011]
[1770610992061,1.301,2096.8,2096.4,1.19248817]
[1770610992266,1.301,2096.8,2096.3,2.09686088]
[1770610993167,0.001,2096.9,2096.6,2.09672378]